[Event "MČR družstev mladších žáků 2024"]
[Site "Harrachov, Czech Republic"]
[Date "2024.06.16"]
[Round "9.3"]
[White "Kolar Edvard"]
[Black "Svoboda Petr"]
[Result "1-0"]
[TimeControl "25+10"]
[WhiteFideId "23746238"]
[BlackFideId "23771550"]
[WhiteElo "1553"]
[BlackElo "1261"]

1. e4 {[%clk 00:25:19]} e6 {[%clk 00:25:17]} {[%emt 00:00:03]} 2. d4 {[%clk
00:25:28]} d5 {[%clk 00:25:25]} {[%emt 00:00:02]} 3. Nc3 {[%clk 00:25:37]}
{[%emt 00:00:01]} Bb4 {[%clk 00:25:33]} {[%emt 00:00:02]} 4. e5 {[%clk
00:25:43]} {[%emt 00:00:05]} c5 {[%clk 00:25:41]} {[%emt 00:00:01]} 5. a3
{[%clk 00:25:51]} {[%emt 00:00:03]} Bxc3+ {[%clk 00:25:49]} {[%emt 00:00:01]} 6.
bxc3 {[%clk 00:25:59]} {[%emt 00:00:01]} Nc6 {[%clk 00:25:47]} {[%emt
00:00:12]} 7. Qg4 {[%clk 00:25:55]} {[%emt 00:00:14]} Nge7 {[%clk 00:25:29]}
{[%emt 00:00:28]} 8. Qxg7 {[%clk 00:25:43]} {[%emt 00:00:22]} Rg8 {[%clk
00:25:38]} {[%emt 00:00:02]} 9. Qxh7 {[%clk 00:25:43]} {[%emt 00:00:09]} cxd4
{[%clk 00:19:42]} {[%emt 00:06:06]} 10. cxd4 {[%clk 00:25:19]} {[%emt
00:00:34]} Qa5+ {[%clk 00:19:23]} {[%emt 00:00:28]} 11. Bd2 {[%clk 00:25:01]}
{[%emt 00:00:28]} Qb6 {[%clk 00:18:39]} {[%emt 00:00:47]} 12. c3 {[%clk
00:24:42]} {[%emt 00:00:37]} Rg6 {[%clk 00:12:38]} {[%emt 00:06:05]} 13. Qh8+
{[%clk 00:22:44]} {[%emt 00:02:13]} Rg8 {[%clk 00:12:34]} {[%emt 00:00:14]} 14.
Qh5 {[%clk 00:22:46]} {[%emt 00:00:04]} Qb2 {[%clk 00:12:24]} {[%emt 00:00:23]}
15. Qd1 {[%clk 00:22:46]} {[%emt 00:00:11]} Nf5 {[%clk 00:09:25]} {[%emt
00:03:10]} 16. Qb1 {[%clk 00:22:34]} {[%emt 00:00:22]} Qxb1+ {[%clk 00:07:48]}
{[%emt 00:01:46]} 17. Rxb1 {[%clk 00:22:42]} {[%emt 00:00:02]} b6 {[%clk
00:07:28]} {[%emt 00:00:30]} 18. h4 {[%clk 00:22:40]} {[%emt 00:00:12]} Bb7
{[%clk 00:06:53]} {[%emt 00:00:45]} 19. h5 {[%clk 00:22:44]} {[%emt 00:00:05]}
Ke7 {[%clk 00:06:24]} {[%emt 00:00:40]} 20. Nf3 {[%clk 00:22:39]} {[%emt
00:00:15]} Rh8 {[%clk 00:05:33]} {[%emt 00:01:01]} 21. h6 {[%clk 00:22:35]}
{[%emt 00:00:14]} Rag8 {[%clk 00:05:13]} {[%emt 00:00:29]} 22. Bg5+ {[%clk
00:22:31]} {[%emt 00:00:13]} Kd7 {[%clk 00:04:59]} {[%emt 00:00:24]} 23. g4
{[%clk 00:22:37]} {[%emt 00:00:04]} Nxh6 {[%clk 00:04:27]} {[%emt 00:00:42]} 24.
Bxh6 {[%clk 00:22:19]} {[%emt 00:00:28]} Rxg4 {[%clk 00:04:28]} {[%emt
00:00:09]} 25. Rh3 {[%clk 00:21:45]} {[%emt 00:00:44]} Ne7 {[%clk 00:03:28]}
{[%emt 00:01:10]} 26. Kd2 {[%clk 00:21:24]} {[%emt 00:00:31]} Nf5 {[%clk
00:03:05]} {[%emt 00:00:33]} 27. Be3 {[%clk 00:21:26]} {[%emt 00:00:09]} Rc8
{[%clk 00:02:36]} {[%emt 00:00:25]} 28. Bb5+ {[%clk 00:21:25]} {[%emt
00:00:25]} Ke7 {[%clk 00:02:33]} {[%emt 00:00:13]} 29. Bg5+ {[%clk 00:21:24]}
{[%emt 00:00:11]} Kf8 {[%clk 00:02:01]} {[%emt 00:00:42]} 30. Rh8+ {[%clk
00:21:23]} {[%emt 00:00:12]} Kg7 {[%clk 00:02:10]} {[%emt 00:00:02]} 31. Bf6+
{[%clk 00:21:30]} {[%emt 00:00:02]} Kg6 {[%clk 00:02:06]} {[%emt 00:00:14]} 32.
Rbh1 {[%clk 00:21:21]} {[%emt 00:00:19]} Rg2 {[%clk 00:01:43]} {[%emt
00:00:33]} 33. R8h6+ {[%clk 00:20:17]} {[%emt 00:01:15]} Nxh6 {[%clk 00:01:32]}
{[%emt 00:00:20]} 34. Bd3+ {[%clk 00:20:25]} {[%emt 00:00:02]} Nf5 {[%clk
00:01:20]} {[%emt 00:00:22]} 35. Nh4+ {[%clk 00:20:28]} {[%emt 00:00:07]} Kh5
{[%clk 00:01:15]} {[%emt 00:00:15]} 36. Nxg2+ {[%clk 00:19:44]} {[%emt
00:00:55]} Kg4 {[%clk 00:01:03]} {[%emt 00:00:22]} 37. Be2# {[%clk 00:19:33]}
{[%emt 00:00:21]} 1-0



[ePGN "0.1;DGT LiveChess/2.2.6"]

[Event "MČR družstev mladších žáků 2024"]
[Site "Harrachov, Czech Republic"]
[Date "2024.06.16"]
[Round "9.4"]
[White "Dvorak Vojtech"]
[Black "Gernert Tomas"]
[Result "0-1"]
[TimeControl "25+10"]
[WhiteFideId "23742089"]
[BlackFideId "23750219"]
[WhiteElo "1154"]
[BlackElo "1409"]

1. d4 {[%clk 00:25:18]} Nf6 {[%clk 00:25:19]} {[%emt 00:00:01]} 2. Nf3 {[%clk
00:25:12]} {[%emt 00:00:16]} d5 {[%clk 00:25:26]} {[%emt 00:00:03]} 3. Bf4
{[%clk 00:24:46]} {[%emt 00:00:37]} c6 {[%clk 00:25:33]} {[%emt 00:00:03]} 4.
e3 {[%clk 00:24:23]} {[%emt 00:00:33]} Qb6 {[%clk 00:25:40]} {[%emt 00:00:02]}
5. Qc1 {[%clk 00:24:00]} {[%emt 00:00:33]} Bf5 {[%clk 00:25:42]} {[%emt
00:00:08]} 6. Nbd2 {[%clk 00:23:51]} {[%emt 00:00:19]} e6 {[%clk 00:25:39]}
{[%emt 00:00:13]} 7. c3 {[%clk 00:23:49]} {[%emt 00:00:13]} Be7 {[%clk
00:25:43]} {[%emt 00:00:05]} 8. Be2 {[%clk 00:23:31]} {[%emt 00:00:28]} O-O
{[%clk 00:25:42]} {[%emt 00:00:10]} 9. O-O {[%clk 00:23:32]} {[%emt 00:00:09]}
Nbd7 {[%clk 00:25:46]} {[%emt 00:00:06]} 10. Nh4 {[%clk 00:22:54]} {[%emt
00:00:49]} Bg6 {[%clk 00:25:32]} {[%emt 00:00:23]} 11. Nxg6 {[%clk 00:21:32]}
{[%emt 00:01:32]} hxg6 {[%clk 00:25:38]} {[%emt 00:00:04]} 12. b4 {[%clk
00:19:44]} {[%emt 00:01:58]} Kh7 {[%clk 00:24:46]} {[%emt 00:01:02]} 13. Nf3
{[%clk 00:18:36]} {[%emt 00:01:18]} Rh8 {[%clk 00:24:05]} {[%emt 00:00:51]} 14.
h3 {[%clk 00:16:56]} {[%emt 00:01:51]} Kg8 {[%clk 00:23:49]} {[%emt 00:00:25]}
15. Bg3 {[%clk 00:16:10]} {[%emt 00:00:56]} Ne4 {[%clk 00:23:00]} {[%emt
00:01:00]} 16. Bf4 {[%clk 00:15:33]} {[%emt 00:00:47]} g5 {[%clk 00:22:30]}
{[%emt 00:00:39]} 17. Bh2 {[%clk 00:14:48]} {[%emt 00:00:55]} f5 {[%clk
00:21:50]} {[%emt 00:00:50]} 18. Bd3 {[%clk 00:14:39]} {[%emt 00:00:18]} Kf7
{[%clk 00:21:05]} {[%emt 00:00:55]} 19. a4 {[%clk 00:13:39]} {[%emt 00:01:10]}
Rh6 {[%clk 00:20:30]} {[%emt 00:00:46]} 20. a5 {[%clk 00:10:47]} {[%emt
00:03:03]} Qd8 {[%clk 00:20:35]} {[%emt 00:00:04]} 21. Bxe4 {[%clk 00:09:26]}
{[%emt 00:01:31]} dxe4 {[%clk 00:20:37]} {[%emt 00:00:08]} 22. Nd2 {[%emt
00:00:56]} Qh8 {[%clk 00:20:10]} {[%emt 00:00:36]} 23. Re1 {[%clk 00:08:43]}
{[%emt 00:00:07]} g4 {[%clk 00:20:13]} {[%emt 00:00:08]} 24. Bf4 {[%clk
00:07:34]} {[%emt 00:01:19]} Rh7 {[%clk 00:20:01]} {[%emt 00:00:22]} 25. Kf1
{[%clk 00:07:32]} {[%emt 00:00:11]} gxh3 {[%clk 00:19:57]} {[%emt 00:00:14]} 26.
gxh3 {[%clk 00:07:29]} {[%emt 00:00:13]} Rxh3 {[%clk 00:20:01]} {[%emt
00:00:06]} 27. Ke2 {[%clk 00:07:27]} {[%emt 00:00:09]} Qh5+ {[%clk 00:19:01]}
{[%emt 00:01:14]} 28. Nf3 {[%clk 00:05:56]} {[%emt 00:01:41]} Rxf3 {[%clk
00:18:32]} {[%emt 00:00:39]} 29. Kd1 {[%clk 00:03:47]} {[%emt 00:01:55]} Rxf2+
{[%clk 00:18:37]} {[%emt 00:00:29]} 30. Re2 {[%clk 00:03:52]} {[%emt 00:00:05]}
Qxe2# {[%clk 00:18:41]} {[%emt 00:00:05]} 0-1



[ePGN "0.1;DGT LiveChess/2.2.6"]

[Event "MČR družstev mladších žáků 2024"]
[Site "Harrachov, Czech Republic"]
[Date "2024.06.16"]
[Round "9.7"]
[White "Fadrny Jachym"]
[Black "Vancakova Veronika"]
[Result "0-1"]
[TimeControl "25+10"]
[WhiteFideId "23744170"]
[BlackFideId "23731907"]
[WhiteElo "1537"]
[BlackElo "1437"]

1. d4 {[%clk 00:25:16]} {[%emt 00:00:02]} Nf6 {[%clk 00:25:19]} {[%emt
00:00:03]} 2. c4 {[%clk 00:25:25]} {[%emt 00:00:01]} g6 {[%clk 00:25:27]}
{[%emt 00:00:02]} 3. Nc3 {[%clk 00:25:33]} {[%emt 00:00:01]} Bg7 {[%clk
00:25:35]} {[%emt 00:00:02]} 4. e4 {[%clk 00:25:42]} {[%emt 00:00:02]} d6
{[%clk 00:25:43]} {[%emt 00:00:02]} 5. Bd3 {[%clk 00:25:49]} {[%emt 00:00:02]}
Nc6 {[%clk 00:25:28]} {[%emt 00:00:26]} 6. Nge2 {[%clk 00:25:14]} {[%emt
00:00:45]} e5 {[%clk 00:25:16]} {[%emt 00:00:21]} 7. d5 {[%clk 00:25:22]}
{[%emt 00:00:02]} Ne7 {[%clk 00:25:24]} {[%emt 00:00:02]} 8. O-O {[%clk
00:25:00]} {[%emt 00:00:32]} O-O {[%clk 00:25:25]} {[%emt 00:00:09]} 9. Bd2
{[%clk 00:24:32]} {[%emt 00:00:38]} Nd7 {[%clk 00:24:45]} {[%emt 00:00:50]} 10.
b4 {[%clk 00:24:40]} {[%emt 00:00:03]} f5 {[%clk 00:24:46]} {[%emt 00:00:09]}
11. f3 {[%clk 00:24:13]} {[%emt 00:00:36]} f4 {[%clk 00:24:40]} {[%emt
00:00:16]} 12. Be1 {[%clk 00:23:20]} {[%emt 00:01:03]} g5 {[%clk 00:24:33]}
{[%emt 00:00:16]} 13. Bf2 {[%clk 00:22:20]} {[%emt 00:01:10]} h5 {[%clk
00:24:23]} {[%emt 00:00:21]} 14. c5 {[%clk 00:21:10]} {[%emt 00:01:20]} Nf6
{[%clk 00:23:01]} {[%emt 00:01:31]} 15. Bc4 {[%clk 00:19:33]} {[%emt 00:01:47]}
Kh7 {[%clk 00:21:15]} {[%emt 00:01:56]} 16. cxd6 {[%clk 00:18:04]} {[%emt
00:01:39]} cxd6 {[%clk 00:21:21]} {[%emt 00:00:04]} 17. Nc1 {[%clk 00:13:00]}
{[%emt 00:05:14]} Rg8 {[%clk 00:21:10]} {[%emt 00:00:21]} 18. Nd3 {[%clk
00:08:10]} {[%emt 00:05:00]} g4 {[%clk 00:20:55]} {[%emt 00:00:25]} 19. Bh4
{[%clk 00:07:29]} {[%emt 00:00:51]} Ng6 {[%clk 00:20:49]} {[%emt 00:00:16]} 20.
Bxf6 {[%clk 00:06:29]} {[%emt 00:01:09]} Qxf6 {[%clk 00:20:23]} {[%emt
00:00:36]} 21. Kf2 {[%clk 00:05:29]} {[%emt 00:01:10]} Qh4+ {[%clk 00:19:51]}
{[%emt 00:00:42]} 22. Ke2 {[%clk 00:05:03]} {[%emt 00:00:36]} Qxh2 {[%clk
00:18:29]} {[%emt 00:01:31]} 23. Rg1 {[%clk 00:05:08]} {[%emt 00:00:05]} gxf3+
{[%clk 00:18:34]} {[%emt 00:00:06]} 24. Kd2 {[%clk 00:05:04]} {[%emt 00:00:14]}
fxg2 {[%clk 00:17:49]} {[%emt 00:00:55]} 25. Nf2 {[%clk 00:04:48]} {[%emt
00:00:26]} Bh6 {[%clk 00:16:25]} {[%emt 00:01:34]} 26. Kc2 {[%clk 00:04:39]}
{[%emt 00:00:19]} Qg3 {[%clk 00:15:47]} {[%emt 00:00:47]} 27. Nd3 {[%clk
00:03:43]} {[%emt 00:01:06]} f3 {[%clk 00:15:10]} {[%emt 00:00:47]} 28. Qe1
{[%clk 00:01:12]} {[%emt 00:02:41]} Qxe1 {[%clk 00:13:33]} {[%emt 00:01:48]} 29.
Raxe1 {[%clk 00:01:19]} {[%emt 00:00:02]} Nf4 {[%clk 00:13:23]} {[%emt
00:00:20]} 30. Nf2 {[%clk 00:01:18]} {[%emt 00:00:11]} Bd7 {[%clk 00:11:26]}
{[%emt 00:02:07]} 31. Bb5 {[%clk 00:00:50]} {[%emt 00:00:38]} Bc8 {[%clk
00:10:34]} {[%emt 00:01:02]} 32. Bc4 {[%clk 00:00:46]} {[%emt 00:00:15]} a6
{[%clk 00:10:42]} {[%emt 00:00:02]} 33. Ncd1 {[%clk 00:00:28]} {[%emt
00:00:27]} Bd7 {[%clk 00:10:18]} {[%emt 00:00:34]} 34. Bb3 {[%clk 00:00:23]}
{[%emt 00:00:15]} h4 {[%clk 00:09:09]} {[%emt 00:01:19]} 35. Re3 {[%clk
00:00:11]} {[%emt 00:00:22]} Ne2 {[%clk 00:08:46]} {[%emt 00:00:33]} 36. Rxe2
{[%clk 00:00:14]} {[%emt 00:00:08]} fxe2 {[%clk 00:08:54]} {[%emt 00:00:02]} 37.
Nd3 {[%clk 00:00:19]} {[%emt 00:00:04]} exd1=Q+ {[%clk 00:08:55]} {[%emt
00:00:09]} 38. Kxd1 {[%clk 00:00:28]} {[%emt 00:00:02]} h3 {[%clk 00:08:58]}
{[%emt 00:00:07]} 39. Ne1 {[%clk 00:00:21]} {[%emt 00:00:16]} h2 {[%clk
00:09:02]} {[%emt 00:00:06]} 40. Rxg2 {[%clk 00:00:26]} {[%emt 00:00:06]} Rxg2
{[%clk 00:09:09]} {[%emt 00:00:03]} 41. Nxg2 {[%clk 00:00:34]} {[%emt
00:00:02]} h1=Q+ {[%clk 00:09:16]} {[%emt 00:00:03]} 42. Kc2 {[%clk 00:00:42]}
{[%emt 00:00:01]} Qxg2+ {[%clk 00:09:24]} {[%emt 00:00:02]} 43. Kc3 {[%clk
00:00:51]} {[%emt 00:00:02]} Qd2+ {[%clk 00:09:26]} {[%emt 00:00:07]} 44. Kc4
{[%clk 00:01:00]} {[%emt 00:00:02]} Rc8# {[%clk 00:09:34]} {[%emt 00:00:02]}
0-1



[ePGN "0.1;DGT LiveChess/2.2.6"]

[Event "MČR družstev mladších žáků 2024"]
[Site "Harrachov, Czech Republic"]
[Date "2024.06.16"]
[Round "9.8"]
[White "Walder Hugo"]
[Black "Trejbal Jindrich"]
[Result "1-0"]
[TimeControl "25+10"]
[WhiteFideId "23743360"]
[BlackFideId "23743948"]
[WhiteElo "1489"]
[BlackElo "1401"]

1. e4 {[%clk 00:25:17]} {[%emt 00:00:03]} e5 {[%clk 00:25:19]} {[%emt
00:00:02]} 2. Nf3 {[%clk 00:25:26]} Nf6 {[%clk 00:25:29]} 3. Nxe5 {[%clk
00:25:35]} d6 {[%clk 00:25:38]} {[%emt 00:00:01]} 4. Nf3 {[%clk 00:25:44]}
{[%emt 00:00:01]} Nxe4 {[%clk 00:25:46]} {[%emt 00:00:02]} 5. d3 {[%clk
00:25:53]} Nf6 {[%clk 00:25:53]} {[%emt 00:00:02]} 6. Be2 {[%clk 00:25:58]}
{[%emt 00:00:06]} Be7 {[%clk 00:26:00]} {[%emt 00:00:03]} 7. O-O {[%clk
00:26:06]} {[%emt 00:00:02]} O-O {[%clk 00:26:02]} {[%emt 00:00:07]} 8. Nc3
{[%clk 00:26:10]} {[%emt 00:00:07]} d5 {[%clk 00:25:49]} {[%emt 00:00:24]} 9.
d4 {[%clk 00:26:14]} {[%emt 00:00:06]} h6 {[%clk 00:25:39]} {[%emt 00:00:20]}
10. Bf4 {[%clk 00:26:15]} {[%emt 00:00:07]} Nh5 {[%clk 00:25:37]} {[%emt
00:00:14]} 11. Bg3 {[%clk 00:26:14]} {[%emt 00:00:11]} Nxg3 {[%clk 00:25:43]}
{[%emt 00:00:03]} 12. fxg3 {[%clk 00:26:19]} {[%emt 00:00:05]} Bf5 {[%clk
00:25:18]} {[%emt 00:00:35]} 13. Ne5 {[%clk 00:26:20]} {[%emt 00:00:09]} Bh7
{[%clk 00:25:14]} {[%emt 00:00:13]} 14. Bh5 {[%clk 00:26:19]} {[%emt 00:00:12]}
g6 {[%clk 00:24:52]} {[%emt 00:00:32]} 15. Bg4 {[%clk 00:26:15]} {[%emt
00:00:13]} Nc6 {[%clk 00:24:31]} {[%emt 00:00:29]} 16. Nxf7 {[%clk 00:25:23]}
{[%emt 00:01:05]} Rxf7 {[%clk 00:23:53]} {[%emt 00:00:48]} 17. Be6 {[%clk
00:25:32]} {[%emt 00:00:01]} Bf6 {[%clk 00:23:39]} {[%emt 00:00:23]} 18. Nxd5
{[%clk 00:24:49]} {[%emt 00:00:53]} Kg7 {[%clk 00:19:39]} {[%emt 00:04:09]} 19.
Bxf7 {[%clk 00:24:15]} {[%emt 00:00:45]} Bxd4+ {[%clk 00:19:26]} {[%emt
00:00:23]} 20. Kh1 {[%clk 00:24:22]} {[%emt 00:00:02]} Bg8 {[%clk 00:18:38]}
{[%emt 00:00:59]} 21. Bxg8 {[%clk 00:24:09]} {[%emt 00:00:24]} Kxg8 {[%clk
00:18:40]} {[%emt 00:00:08]} 22. Nf4 {[%clk 00:24:15]} {[%emt 00:00:03]} Bxb2
{[%clk 00:18:03]} {[%emt 00:00:46]} 23. Qxd8+ {[%clk 00:24:15]} {[%emt
00:00:11]} Rxd8 {[%clk 00:18:11]} {[%emt 00:00:03]} 24. Rab1 {[%clk 00:24:14]}
{[%emt 00:00:11]} Bc3 {[%emt 00:01:12]} 25. Rxb7 {[%clk 00:24:09]} {[%emt
00:00:14]} Ne5 {[%clk 00:16:39]} {[%emt 00:00:40]} 26. Rxc7 {[%clk 00:23:52]}
{[%emt 00:00:27]} Ba5 {[%clk 00:16:17]} {[%emt 00:00:31]} 27. Rxa7 {[%clk
00:23:50]} {[%emt 00:00:13]} Bb6 {[%clk 00:16:21]} {[%emt 00:00:05]} 28. Rb7
{[%clk 00:23:20]} {[%emt 00:00:38]} Bc5 {[%clk 00:16:08]} {[%emt 00:00:25]} 29.
Ne6 {[%clk 00:23:19]} {[%emt 00:00:10]} Rc8 {[%clk 00:16:01]} {[%emt 00:00:19]}
30. Nxc5 {[%clk 00:23:12]} {[%emt 00:00:18]} Rxc5 {[%clk 00:16:09]} {[%emt
00:00:01]} 31. h3 {[%clk 00:22:19]} {[%emt 00:01:03]} Rxc2 {[%clk 00:16:10]}
{[%emt 00:00:09]} 32. Ra7 {[%clk 00:22:28]} {[%emt 00:00:01]} Nc4 {[%clk
00:16:02]} {[%emt 00:00:18]} 33. Re1 {[%clk 00:22:22]} {[%emt 00:00:12]} Kf8
{[%clk 00:16:02]} {[%emt 00:00:15]} 34. Rb1 {[%clk 00:21:35]} {[%emt 00:00:55]}
Nb2 {[%clk 00:15:39]} {[%emt 00:00:34]} 35. a4 {[%clk 00:21:04]} {[%emt
00:00:41]} Ke8 {[%clk 00:15:23]} {[%emt 00:00:27]} 36. a5 {[%clk 00:21:11]}
{[%emt 00:00:03]} Kd8 {[%clk 00:15:31]} {[%emt 00:00:01]} 37. a6 {[%clk
00:21:20]} {[%emt 00:00:02]} Kc8 {[%clk 00:15:40]} 38. Rh7 {[%clk 00:21:28]}
{[%emt 00:00:03]} 1-0



[ePGN "0.1;DGT LiveChess/2.2.6"]

[Event "MČR družstev mladších žáků 2024"]
[Site "Harrachov, Czech Republic"]
[Date "2024.06.16"]
[Round "9.9"]
[White "Bartak Tobias"]
[Black "Bucek Vit"]
[Result "0-1"]
[TimeControl "25+10"]
[WhiteFideId "23753544"]
[BlackFideId "23750812"]
[WhiteElo "1260"]
[BlackElo "1582"]

1. e4 {[%clk 00:25:17]} {[%emt 00:00:03]} c5 {[%clk 00:25:19]} {[%emt
00:00:01]} 2. Nf3 {[%clk 00:25:14]} {[%emt 00:00:12]} Nc6 {[%clk 00:25:27]}
{[%emt 00:00:02]} 3. d4 {[%clk 00:25:08]} {[%emt 00:00:17]} cxd4 {[%clk
00:25:35]} {[%emt 00:00:02]} 4. Nxd4 {[%clk 00:25:13]} {[%emt 00:00:05]} g6
{[%clk 00:25:43]} {[%emt 00:00:02]} 5. Nc3 {[%clk 00:25:01]} {[%emt 00:00:23]}
Bg7 {[%clk 00:25:50]} {[%emt 00:00:02]} 6. Be3 {[%clk 00:24:49]} {[%emt
00:00:22]} Nf6 {[%clk 00:25:46]} {[%emt 00:00:13]} 7. Bc4 {[%clk 00:24:45]}
{[%emt 00:00:14]} d6 {[%clk 00:25:48]} {[%emt 00:00:08]} 8. O-O {[%clk
00:24:13]} {[%emt 00:00:43]} Ng4 {[%clk 00:25:41]} {[%emt 00:00:17]} 9. Qf3
{[%clk 00:23:27]} {[%emt 00:00:56]} O-O {[%clk 00:25:39]} {[%emt 00:00:11]} 10.
Rad1 {[%clk 00:23:20]} {[%emt 00:00:18]} Nxe3 {[%clk 00:25:41]} {[%emt
00:00:09]} 11. fxe3 {[%clk 00:23:18]} {[%emt 00:00:12]} Ne5 {[%clk 00:25:37]}
{[%emt 00:00:13]} 12. Qe2 {[%clk 00:23:00]} {[%emt 00:00:29]} Bd7 {[%clk
00:25:31]} {[%emt 00:00:16]} 13. h3 {[%clk 00:19:47]} {[%emt 00:03:24]} Rc8
{[%clk 00:25:26]} {[%emt 00:00:14]} 14. Bb3 {[%clk 00:19:36]} {[%emt 00:00:22]}
a6 {[%clk 00:24:31]} {[%emt 00:01:05]} 15. Nf3 {[%clk 00:14:19]} {[%emt
00:05:28]} b5 {[%clk 00:17:23]} {[%emt 00:07:18]} 16. a3 {[%clk 00:12:56]}
{[%emt 00:01:33]} Nc4 {[%clk 00:17:07]} {[%emt 00:00:24]} 17. Bxc4 {[%clk
00:11:48]} {[%emt 00:01:19]} Rxc4 {[%clk 00:17:06]} {[%emt 00:00:10]} 18. e5
{[%clk 00:09:24]} {[%emt 00:02:35]} dxe5 {[%clk 00:15:57]} {[%emt 00:01:19]} 19.
e4 {[%clk 00:08:50]} {[%emt 00:00:44]} Qb6+ {[%clk 00:15:37]} {[%emt 00:00:28]}
20. Kh1 {[%clk 00:08:52]} {[%emt 00:00:11]} Be6 {[%clk 00:15:12]} {[%emt
00:00:33]} 21. Ng5 {[%clk 00:08:33]} {[%emt 00:00:31]} Rfc8 {[%clk 00:14:56]}
{[%emt 00:00:22]} 22. Nxe6 {[%clk 00:08:31]} {[%emt 00:00:16]} Qxe6 {[%clk
00:15:03]} {[%emt 00:00:02]} 23. Rd5 {[%clk 00:08:09]} {[%emt 00:00:33]} Rd4
{[%clk 00:14:12]} {[%emt 00:00:58]} 24. Rd1 {[%clk 00:07:44]} {[%emt 00:00:37]}
Qc6 {[%clk 00:14:06]} {[%emt 00:00:13]} 25. Rd2 {[%clk 00:03:27]} {[%emt
00:04:30]} e6 {[%clk 00:13:57]} {[%emt 00:00:19]} 26. R5xd4 {[%clk 00:03:16]}
{[%emt 00:00:22]} exd4 {[%clk 00:14:05]} {[%emt 00:00:01]} 27. Na2 {[%clk
00:03:23]} {[%emt 00:00:04]} a5 {[%clk 00:13:29]} {[%emt 00:00:45]} 28. b4
{[%clk 00:03:01]} {[%emt 00:00:33]} a4 {[%clk 00:13:21]} {[%emt 00:00:18]} 29.
Nc1 {[%clk 00:03:03]} {[%emt 00:00:09]} Bh6 {[%clk 00:12:37]} {[%emt 00:00:53]}
30. Rxd4 {[%clk 00:02:01]} {[%emt 00:01:13]} Bxc1 {[%clk 00:12:44]} {[%emt
00:00:03]} 31. Qd1 {[%clk 00:02:09]} {[%emt 00:00:01]} Bh6 {[%clk 00:12:16]}
{[%emt 00:00:37]} 32. Qe1 {[%clk 00:00:53]} {[%emt 00:01:27]} Qxc2 {[%clk
00:12:03]} {[%emt 00:00:23]} 33. Qh4 {[%clk 00:01:01]} {[%emt 00:00:02]} Qc1+
{[%clk 00:12:08]} {[%emt 00:00:05]} 34. Kh2 {[%clk 00:01:10]} {[%emt 00:00:01]}
Bf4+ {[%clk 00:12:11]} {[%emt 00:00:07]} 35. Qg3 {[%clk 00:01:02]} {[%emt
00:00:18]} Bxg3+ {[%clk 00:12:17]} {[%emt 00:00:04]} 36. Kxg3 {[%clk 00:01:10]}
{[%emt 00:00:02]} Qe3+ {[%clk 00:12:25]} {[%emt 00:00:02]} 37. Kh2 {[%clk
00:01:19]} {[%emt 00:00:01]} Qf4+ {[%clk 00:12:32]} {[%emt 00:00:03]} 38. Kg1
{[%clk 00:01:26]} {[%emt 00:00:04]} Rc1+ {[%clk 00:12:40]} {[%emt 00:00:01]} 39.
Rd1 {[%clk 00:01:34]} {[%emt 00:00:02]} Rxd1# {[%clk 00:12:49]} {[%emt
00:00:01]} 0-1